[Event "November 21 Early 2023"]
[Site "https://www.chess.com"]
[Date "2023.11.21"]
[Round "6"]
[White "Toktomushev, Teimur"]
[Black "Rutten, Alexander"]
[Result "1-0"]
[Board "186"]
[TimeControl "180+1"]
[WhiteFideId "14176726"]
[BlackFideId "1052063"]
[WhiteElo "2198"]
[BlackElo "2124"]
[WhiteTeam "UKR"]
[BlackTeam "NED"]
[WhiteClock "0:00:05"]
[BlackClock "0:00:05"]

1. d4 {[%clk 0:02:55]}  d5 {[%clk 0:02:59]} 2. c4 {[%clk 0:02:52]}  c6 {[%clk 0:02:59]} 3. Nc3 {[%clk 0:02:51]}  Nf6 {[%clk 0:02:59]} 4. Nf3 {[%clk 0:02:50]}  e6 {[%clk 0:02:56]} 5. e3 {[%clk 0:02:50]}  Nbd7 {[%clk 0:02:54]} 6. Qc2 {[%clk 0:02:50]}  dxc4 {[%clk 0:02:54]} 7. Bxc4 {[%clk 0:02:50]}  b5 {[%clk 0:02:54]} 8. Bd3 {[%clk 0:02:46]}  a6 {[%clk 0:02:52]} 9. e4 {[%clk 0:02:15]}  c5 {[%clk 0:02:35]} 10. e5 {[%clk 0:01:54]}  c4 {[%clk 0:02:29]} 11. exf6 {[%clk 0:01:42]}  cxd3 {[%clk 0:02:28]} 12. fxg7 {[%clk 0:01:42]}  Bxg7 {[%clk 0:02:23]} 13. Qxd3 {[%clk 0:01:42]}  Bb7 {[%clk 0:02:17]} 14. Bg5 {[%clk 0:01:27]}  Qc7 {[%clk 0:02:05]} 15. Rc1 {[%clk 0:01:24]}  Qd6 {[%clk 0:02:01]} 16. O-O {[%clk 0:01:02]}  O-O {[%clk 0:01:58]} 17. Rfe1 {[%clk 0:00:48]}  Nf6 {[%clk 0:01:55]} 18. Bxf6 {[%clk 0:00:40]}  Bxf6 {[%clk 0:01:56]} 19. Ne4 {[%clk 0:00:40]}  Bxe4 {[%clk 0:01:54]} 20. Rxe4 {[%clk 0:00:40]}  Rac8 {[%clk 0:01:48]} 21. Rd1 {[%clk 0:00:18]}  Rfd8 {[%clk 0:01:42]} 22. h4 {[%clk 0:00:12]}  h6 {[%clk 0:01:39]} 23. Ne5 {[%clk 0:00:04]}  Bxe5 {[%clk 0:01:32]} 24. Rxe5 {[%clk 0:00:05]}  Qxe5 {[%clk 0:01:14]} 25. dxe5 {[%clk 0:00:06]}  Rxd3 {[%clk 0:01:13]} 26. Rxd3 {[%clk 0:00:06]}  Rc1+ {[%clk 0:01:13]} 27. Kh2 {[%clk 0:00:07]}  Rc2 {[%clk 0:01:14]} 28. Ra3 {[%clk 0:00:02]}  Rxb2 {[%clk 0:01:13]} 29. Kg3 {[%clk 0:00:02]}  Re2 {[%clk 0:01:10]} 30. f4 {[%clk 0:00:02]}  Kg7 {[%clk 0:00:59]} 31. Rxa6 {[%clk 0:00:02]}  Rb2 {[%clk 0:00:57]} 32. Rb6 {[%clk 0:00:01]}  b4 {[%clk 0:00:57]} 33. Rb5 {[%clk 0:00:01]}  Kg6 {[%clk 0:00:57]} 34. Kg4 {[%clk 0:00:02]}  h5+ {[%clk 0:00:57]} 35. Kh3 {[%clk 0:00:01]}  Rb1 {[%clk 0:00:53]} 36. g3 {[%clk 0:00:02]}  Rb2 {[%clk 0:00:52]} 37. Rb7 {[%clk 0:00:01]}  Kg7 {[%clk 0:00:37]} 38. Rb8 {[%clk 0:00:01]}  Kh7 {[%clk 0:00:37]} 39. Rb7 {[%clk 0:00:02]}  Kg6 {[%clk 0:00:38]} 40. Rb6 {[%clk 0:00:02]}  Kf5 {[%clk 0:00:37]} 41. Rb7 {[%clk 0:00:03]}  Ke4 {[%clk 0:00:32]} 42. Rxf7 {[%clk 0:00:02]}  Rxa2 {[%clk 0:00:30]} 43. Rf6 {[%clk 0:00:02]}  b3 {[%clk 0:00:28]} 44. Rxe6 {[%clk 0:00:02]}  Kf3 {[%clk 0:00:27]} 45. Rb6 {[%clk 0:00:02]}  b2 {[%clk 0:00:20]} 46. Rb3+ {[%clk 0:00:02]}  Ke4 {[%clk 0:00:10]} 47. e6 {[%clk 0:00:03]}  Ra3 {[%clk 0:00:07]} 48. Rxb2 {[%clk 0:00:02]}  Ra8 {[%clk 0:00:07]} 49. Re2+ {[%clk 0:00:02]}  Kf5 {[%clk 0:00:07]} 50. e7 {[%clk 0:00:02]}  Re8 {[%clk 0:00:08]} 51. Kg2 {[%clk 0:00:02]}  Kg4 {[%clk 0:00:08]} 52. Kf2 {[%clk 0:00:02]}  Kf5 {[%clk 0:00:08]} 53. Kf3 {[%clk 0:00:03]}  Kf6 {[%clk 0:00:08]} 54. g4 {[%clk 0:00:03]}  hxg4+ {[%clk 0:00:08]} 55. Kxg4 {[%clk 0:00:04]}  Rg8+ {[%clk 0:00:09]} 56. Kf3 {[%clk 0:00:04]}  Re8 {[%clk 0:00:09]} 57. h5 {[%clk 0:00:04]}  Kf7 {[%clk 0:00:09]} 58. Kg4 {[%clk 0:00:03]}  Kf6 {[%clk 0:00:09]} 59. h6 {[%clk 0:00:03]}  Rg8+ {[%clk 0:00:09]} 60. Kh5 {[%clk 0:00:03]}  Re8 {[%clk 0:00:09]} 61. h7 {[%clk 0:00:04]}  Kg7 {[%clk 0:00:08]} 62. f5 {[%clk 0:00:04]}  Kf6 {[%clk 0:00:07]} 63. Kg4 {[%clk 0:00:03]}  Kg7 {[%clk 0:00:06]} 64. Kg5 {[%clk 0:00:03]}  Kf7 {[%clk 0:00:06]} 65. f6 {[%clk 0:00:03]}  Ra8 {[%clk 0:00:03]} 66. e8=Q+ {[%clk 0:00:02]}  Rxe8 {[%clk 0:00:03]} 67. Rxe8 {[%clk 0:00:02]}  Kxe8 {[%clk 0:00:04]} 68. h8=Q+ {[%clk 0:00:03]}  Kf7 {[%clk 0:00:05]} 69. Qg7+ {[%clk 0:00:03]}  Ke6 {[%clk 0:00:05]} 70. f7 {[%clk 0:00:04]}  Kd5 {[%clk 0:00:05]} 71. f8=Q {[%clk 0:00:05]}  Ke6 {[%clk 0:00:06]} 72. Qff6+ {[%clk 0:00:05]}  Kd5 {[%clk 0:00:05]} 73. Qd4+ {[%clk 0:00:05]} 1-0

[Event "November 21 Early 2023"]
[Site "https://www.chess.com"]
[Date "2023.11.21"]
[Round "6"]
[White "Ismayil, Malak"]
[Black "Alhadad, Mahmoud"]
[Result "1-0"]
[Board "187"]
[TimeControl "180+1"]
[WhiteFideId "13412604"]
[BlackFideId "11501863"]
[WhiteElo "1898"]
[BlackElo "1955"]
[WhiteTeam "AZE"]
[BlackTeam "PLE"]
[WhiteClock "0:00:08"]
[BlackClock "0:00:13"]

1. e4 {[%clk 0:02:43]}  d5 {[%clk 0:02:59]} 2. exd5 {[%clk 0:02:42]}  Nf6 {[%clk 0:02:59]} 3. Nf3 {[%clk 0:02:41]}  Bg4 {[%clk 0:02:59]} 4. Be2 {[%clk 0:02:42]}  Qxd5 {[%clk 0:02:57]} 5. O-O {[%clk 0:02:38]}  Nc6 {[%clk 0:02:57]} 6. Nc3 {[%clk 0:02:38]}  Qf5 {[%clk 0:02:55]} 7. d3 {[%clk 0:02:38]}  e6 {[%clk 0:02:54]} 8. Be3 {[%clk 0:02:39]}  Bd6 {[%clk 0:02:53]} 9. Nd2 {[%clk 0:02:30]}  Bxe2 {[%clk 0:02:47]} 10. Qxe2 {[%clk 0:02:31]}  O-O-O {[%clk 0:02:45]} 11. Nde4 {[%clk 0:02:26]}  Nxe4 {[%clk 0:02:41]} 12. Nxe4 {[%clk 0:02:19]}  h5 {[%clk 0:02:40]} 13. a3 {[%clk 0:02:15]}  g5 {[%clk 0:02:35]} 14. b4 {[%clk 0:02:08]}  g4 {[%clk 0:02:28]} 15. Rab1 {[%clk 0:02:06]}  Ne5 {[%clk 0:02:28]} 16. Ng3 {[%clk 0:02:02]}  Qg6 {[%clk 0:02:03]} 17. d4 {[%clk 0:01:47]}  h4 {[%clk 0:01:47]} 18. dxe5 {[%clk 0:01:43]}  Bxe5 {[%clk 0:01:32]} 19. Nh1 {[%clk 0:01:22]}  Bxh2+ {[%clk 0:01:17]} 20. Kxh2 {[%clk 0:01:15]}  g3+ {[%clk 0:01:17]} 21. Kg1 {[%clk 0:00:49]}  h3 {[%clk 0:01:16]} 22. Nxg3 {[%clk 0:00:38]}  hxg2 {[%clk 0:01:15]} 23. Kxg2 {[%clk 0:00:38]}  f5 {[%clk 0:01:14]} 24. Rh1 {[%clk 0:00:37]}  e5 {[%clk 0:01:02]} 25. Rxh8 {[%clk 0:00:36]}  Rxh8 {[%clk 0:01:00]} 26. Qd3 {[%clk 0:00:37]}  e4 {[%clk 0:00:57]} 27. Qd5 {[%clk 0:00:35]}  Qg4 {[%clk 0:00:50]} 28. Qxf5+ {[%clk 0:00:35]}  Qxf5 {[%clk 0:00:37]} 29. Nxf5 {[%clk 0:00:35]}  b6 {[%clk 0:00:35]} 30. Ng3 {[%clk 0:00:34]}  Re8 {[%clk 0:00:33]} 31. Rh1 {[%clk 0:00:34]}  Kb7 {[%clk 0:00:34]} 32. Rh4 {[%clk 0:00:34]}  Ka6 {[%clk 0:00:34]} 33. Rxe4 {[%clk 0:00:34]}  Rg8 {[%clk 0:00:34]} 34. a4 {[%clk 0:00:32]}  c6 {[%clk 0:00:34]} 35. Rc4 {[%clk 0:00:31]}  Rg6 {[%clk 0:00:32]} 36. Rxc6 {[%clk 0:00:30]}  Rg4 {[%clk 0:00:32]} 37. c4 {[%clk 0:00:26]}  Rg7 {[%clk 0:00:24]} 38. a5 {[%clk 0:00:26]}  Kb7 {[%clk 0:00:21]} 39. b5 {[%clk 0:00:24]}  bxa5 {[%clk 0:00:20]} 40. Ra6 {[%clk 0:00:25]}  Kb8 {[%clk 0:00:19]} 41. Rxa5 {[%clk 0:00:24]}  a6 {[%clk 0:00:18]} 42. Rxa6 {[%clk 0:00:24]}  Rg4 {[%clk 0:00:16]} 43. c5 {[%clk 0:00:22]}  Kb7 {[%clk 0:00:14]} 44. Rb6+ {[%clk 0:00:22]}  Ka8 {[%clk 0:00:14]} 45. Kf3 {[%clk 0:00:23]}  Rg7 {[%clk 0:00:13]} 46. Ra6+ {[%clk 0:00:22]}  Kb7 {[%clk 0:00:13]} 47. Nf5 {[%clk 0:00:23]}  Rf7 {[%clk 0:00:12]} 48. Ke4 {[%clk 0:00:22]}  Kb8 {[%clk 0:00:12]} 49. Bf4+ {[%clk 0:00:21]}  Kc8 {[%clk 0:00:11]} 50. Nd6+ {[%clk 0:00:22]}  Kc7 {[%clk 0:00:12]} 51. Nxf7+ {[%clk 0:00:21]}  Kb7 {[%clk 0:00:12]} 52. Nd6+ {[%clk 0:00:22]}  Kb8 {[%clk 0:00:12]} 53. Nc4+ {[%clk 0:00:19]}  Kb7 {[%clk 0:00:12]} 54. Rb6+ {[%clk 0:00:20]}  Ka7 {[%clk 0:00:12]} 55. c6 {[%clk 0:00:11]}  Ka8 {[%clk 0:00:13]} 56. c7 {[%clk 0:00:05]}  Ka7 {[%clk 0:00:14]} 57. Ra6+ {[%clk 0:00:03]}  Kb7 {[%clk 0:00:14]} 58. Na5+ {[%clk 0:00:04]}  Kc8 {[%clk 0:00:14]} 59. Ra8+ {[%clk 0:00:05]}  Kd7 {[%clk 0:00:13]} 60. c8=Q+ {[%clk 0:00:05]}  Ke7 {[%clk 0:00:14]} 61. Qc6 {[%clk 0:00:06]}  Kf7 {[%clk 0:00:13]} 62. Ra7+ {[%clk 0:00:07]}  Kf8 {[%clk 0:00:13]} 63. Qa8# {[%clk 0:00:08]} 1-0

[Event "November 21 Early 2023"]
[Site "https://www.chess.com"]
[Date "2023.11.21"]
[Round "6"]
[White "Martin, Lewis"]
[Black "FunnyDuck66"]
[Result "0-1"]
[Board "188"]
[TimeControl "180+1"]
[WhiteFideId "410551"]
[WhiteElo "2145"]
[BlackElo "2463"]
[WhiteTeam "ENG"]
[WhiteClock "0:00:00"]
[BlackClock "0:00:05"]

1. c4 {[%clk 0:03:00]}  e6 {[%clk 0:02:57]} 2. g3 {[%clk 0:02:59]}  Nf6 {[%clk 0:02:56]} 3. Bg2 {[%clk 0:02:59]}  d5 {[%clk 0:02:56]} 4. Nf3 {[%clk 0:02:53]}  Be7 {[%clk 0:02:56]} 5. O-O {[%clk 0:02:53]}  O-O {[%clk 0:02:51]} 6. b3 {[%clk 0:02:51]}  Nbd7 {[%clk 0:02:44]} 7. Bb2 {[%clk 0:02:50]}  c6 {[%clk 0:02:41]} 8. d4 {[%clk 0:02:34]}  b5 {[%clk 0:02:22]} 9. Nbd2 {[%clk 0:02:25]}  a5 {[%clk 0:02:18]} 10. Ne5 {[%clk 0:02:23]}  Qb6 {[%clk 0:02:06]} 11. c5 {[%clk 0:02:17]}  Qc7 {[%clk 0:02:05]} 12. f4 {[%clk 0:02:17]}  Ne8 {[%clk 0:01:59]} 13. e4 {[%clk 0:02:14]}  f6 {[%clk 0:01:55]} 14. exd5 {[%clk 0:02:02]}  exd5 {[%clk 0:01:22]} 15. Nd3 {[%clk 0:01:50]}  f5 {[%clk 0:01:15]} 16. Ne5 {[%clk 0:01:47]}  Ndf6 {[%clk 0:01:15]} 17. Qc2 {[%clk 0:01:36]}  Ne4 {[%clk 0:00:54]} 18. Rae1 {[%clk 0:01:34]}  N8f6 {[%clk 0:00:53]} 19. Ndf3 {[%clk 0:01:29]}  a4 {[%clk 0:00:36]} 20. Ng5 {[%clk 0:01:11]}  h6 {[%clk 0:00:31]} 21. Nxe4 {[%clk 0:01:10]}  fxe4 {[%clk 0:00:29]} 22. Ng6 {[%clk 0:01:03]}  Re8 {[%clk 0:00:29]} 23. f5 {[%clk 0:00:59]}  Nh7 {[%clk 0:00:27]} 24. Bc1 {[%clk 0:00:57]}  Bf6 {[%clk 0:00:25]} 25. Rd1 {[%clk 0:00:53]}  e3 {[%clk 0:00:24]} 26. Rfe1 {[%clk 0:00:49]}  axb3 {[%clk 0:00:23]} 27. axb3 {[%clk 0:00:48]}  e2 {[%clk 0:00:24]} 28. Rxe2 {[%clk 0:00:44]}  Rxe2 {[%clk 0:00:23]} 29. Qxe2 {[%clk 0:00:44]}  Bxf5 {[%clk 0:00:24]} 30. Bf4 {[%clk 0:00:40]}  Qf7 {[%clk 0:00:23]} 31. Ne5 {[%clk 0:00:40]}  Bxe5 {[%clk 0:00:22]} 32. Bxe5 {[%clk 0:00:40]}  Ng5 {[%clk 0:00:22]} 33. Rf1 {[%clk 0:00:38]}  Qe6 {[%clk 0:00:22]} 34. h4 {[%clk 0:00:35]}  Ne4 {[%clk 0:00:22]} 35. Qf3 {[%clk 0:00:19]}  Rf8 {[%clk 0:00:20]} 36. Qe3 {[%clk 0:00:15]}  Rf7 {[%clk 0:00:18]} 37. Rf4 {[%clk 0:00:14]}  g5 {[%clk 0:00:18]} 38. hxg5 {[%clk 0:00:13]}  hxg5 {[%clk 0:00:19]} 39. Rxe4 {[%clk 0:00:12]}  dxe4 {[%clk 0:00:18]} 40. Qxg5+ {[%clk 0:00:12]}  Qg6 {[%clk 0:00:18]} 41. Qd8+ {[%clk 0:00:10]}  Rf8 {[%clk 0:00:18]} 42. Qe7 {[%clk 0:00:08]}  e3 {[%clk 0:00:16]} 43. Bxc6 {[%clk 0:00:06]}  Be6 {[%clk 0:00:12]} 44. Be4 {[%clk 0:00:03]}  Qh6 {[%clk 0:00:05]} 45. Qg5+ {[%clk 0:00:00]}  Qxg5 {[%clk 0:00:05]} 0-1

[Event "November 21 Early 2023"]
[Site "https://www.chess.com"]
[Date "2023.11.21"]
[Round "6"]
[White "Jamal-Jamal-Jamal"]
[Black "LLariMarc"]
[Result "1-0"]
[Board "189"]
[TimeControl "180+1"]
[WhiteElo "2456"]
[BlackElo "2248"]
[WhiteClock "0:01:02"]
[BlackClock "0:01:24"]

1. d4 {[%clk 0:03:00]}  f5 {[%clk 0:02:55]} 2. g3 {[%clk 0:03:00]}  Nf6 {[%clk 0:02:52]} 3. Bg2 {[%clk 0:03:00]}  g6 {[%clk 0:02:52]} 4. Nf3 {[%clk 0:02:59]}  Bg7 {[%clk 0:02:53]} 5. O-O {[%clk 0:02:59]}  O-O {[%clk 0:02:53]} 6. c4 {[%clk 0:02:58]}  d6 {[%clk 0:02:51]} 7. Nc3 {[%clk 0:02:58]}  Nbd7 {[%clk 0:02:50]} 8. b3 {[%clk 0:02:57]}  e5 {[%clk 0:02:50]} 9. dxe5 {[%clk 0:02:57]}  dxe5 {[%clk 0:02:50]} 10. Bb2 {[%clk 0:02:57]}  Kh8 {[%clk 0:02:50]} 11. Qc1 {[%clk 0:02:55]}  c6 {[%clk 0:02:49]} 12. Rd1 {[%clk 0:02:53]}  Qc7 {[%clk 0:02:49]} 13. e4 {[%clk 0:02:48]}  Nc5 {[%clk 0:02:46]} 14. exf5 {[%clk 0:02:45]}  Bxf5 {[%clk 0:02:47]} 15. Ng5 {[%clk 0:02:42]}  h6 {[%clk 0:02:43]} 16. Nf3 {[%clk 0:02:37]}  Nd3 {[%clk 0:02:43]} 17. Qd2 {[%clk 0:02:34]}  Nxb2 {[%clk 0:02:43]} 18. Qxb2 {[%clk 0:02:35]}  Ng4 {[%clk 0:02:32]} 19. h3 {[%clk 0:02:15]}  Nxf2 {[%clk 0:02:12]} 20. Qxf2 {[%clk 0:02:12]}  e4 {[%clk 0:02:12]} 21. Nd4 {[%clk 0:02:11]}  Bxh3 {[%clk 0:02:12]} 22. Qe3 {[%clk 0:02:08]}  Bxg2 {[%clk 0:02:03]} 23. Kxg2 {[%clk 0:02:09]}  c5 {[%clk 0:02:03]} 24. Ndb5 {[%clk 0:02:02]}  Qc6 {[%clk 0:01:59]} 25. Rd6 {[%clk 0:01:54]}  Qe8 {[%clk 0:01:57]} 26. Rh1 {[%clk 0:01:33]}  h5 {[%clk 0:01:41]} 27. Qxe4 {[%clk 0:01:26]}  a6 {[%clk 0:01:37]} 28. Nc7 {[%clk 0:01:11]}  Qb8 {[%clk 0:01:32]} 29. Qxg6 {[%clk 0:01:04]}  Qxc7 {[%clk 0:01:30]} 30. Rxh5+ {[%clk 0:01:04]}  Kg8 {[%clk 0:01:30]} 31. Nd5 {[%clk 0:01:05]}  Qa5 {[%clk 0:01:24]} 32. Ne7# {[%clk 0:01:02]} 1-0

[Event "November 21 Early 2023"]
[Site "https://www.chess.com"]
[Date "2023.11.21"]
[Round "6"]
[White "seasidesunset"]
[Black "Tsyhanchuk, Stanislav"]
[Result "0-1"]
[Board "193"]
[TimeControl "180+1"]
[BlackFideId "13505130"]
[WhiteElo "2170"]
[BlackElo "2173"]
[BlackTeam "BLR"]
[WhiteClock "0:01:49"]
[BlackClock "0:02:22"]

1. e4 {[%clk 0:03:00]}  c5 {[%clk 0:02:59]} 2. c4 {[%clk 0:03:00]}  Nc6 {[%clk 0:02:59]} 3. Nc3 {[%clk 0:03:01]}  g6 {[%clk 0:02:57]} 4. g3 {[%clk 0:03:01]}  Bg7 {[%clk 0:02:58]} 5. Bg2 {[%clk 0:03:02]}  e6 {[%clk 0:02:58]} 6. Nge2 {[%clk 0:03:03]}  Nge7 {[%clk 0:02:59]} 7. d3 {[%clk 0:03:03]}  O-O {[%clk 0:02:59]} 8. O-O {[%clk 0:03:04]}  a6 {[%clk 0:02:59]} 9. f4 {[%clk 0:03:04]}  d6 {[%clk 0:02:59]} 10. h3 {[%clk 0:03:04]}  Rb8 {[%clk 0:02:59]} 11. a4 {[%clk 0:03:04]}  Nd4 {[%clk 0:02:58]} 12. Be3 {[%clk 0:03:04]}  Nec6 {[%clk 0:02:58]} 13. g4 {[%clk 0:03:02]}  Nxe2+ {[%clk 0:02:58]} 14. Qxe2 {[%clk 0:03:03]}  Nd4 {[%clk 0:02:58]} 15. Qf2 {[%clk 0:03:03]}  b5 {[%clk 0:02:56]} 16. axb5 {[%clk 0:03:01]}  axb5 {[%clk 0:02:57]} 17. f5 {[%clk 0:03:01]}  exf5 {[%clk 0:02:45]} 18. exf5 {[%clk 0:03:01]}  gxf5 {[%clk 0:02:44]} 19. g5 {[%clk 0:02:28]}  Re8 {[%clk 0:02:33]} 20. Nd5 {[%clk 0:02:24]}  bxc4 {[%clk 0:02:25]} 21. Qg3 {[%clk 0:01:49]}  Ne2+ {[%clk 0:02:22]} 0-1

[Event "November 21 Early 2023"]
[Site "https://www.chess.com"]
[Date "2023.11.21"]
[Round "6"]
[White "ChessLebaneseSalah"]
[Black "Mangialardo, Tiago Carvalho"]
[Result "1/2-1/2"]
[Board "194"]
[TimeControl "180+1"]
[BlackFideId "2130718"]
[WhiteElo "2391"]
[BlackElo "2146"]
[BlackTeam "BRA"]
[WhiteClock "0:00:08"]
[BlackClock "0:00:01"]

1. e4 {[%clk 0:03:00]}  Nf6 {[%clk 0:02:59]} 2. e5 {[%clk 0:03:00]}  Nd5 {[%clk 0:02:59]} 3. Nf3 {[%clk 0:03:00]}  d6 {[%clk 0:02:59]} 4. d4 {[%clk 0:02:58]}  Nc6 {[%clk 0:02:59]} 5. exd6 {[%clk 0:02:57]}  exd6 {[%clk 0:02:59]} 6. c3 {[%clk 0:02:57]}  Be7 {[%clk 0:02:57]} 7. Bc4 {[%clk 0:02:57]}  Nb6 {[%clk 0:02:57]} 8. Bb3 {[%clk 0:02:57]}  O-O {[%clk 0:02:57]} 9. O-O {[%clk 0:02:57]}  Bg4 {[%clk 0:02:58]} 10. Nbd2 {[%clk 0:02:56]}  d5 {[%clk 0:02:58]} 11. h3 {[%clk 0:02:56]}  Bh5 {[%clk 0:02:58]} 12. Re1 {[%clk 0:02:56]}  Bd6 {[%clk 0:02:47]} 13. Nf1 {[%clk 0:02:53]}  Re8 {[%clk 0:02:41]} 14. Ne3 {[%clk 0:02:52]}  Ne7 {[%clk 0:02:26]} 15. g4 {[%clk 0:02:39]}  Bg6 {[%clk 0:02:25]} 16. Ng2 {[%clk 0:02:37]}  a5 {[%clk 0:01:58]} 17. a4 {[%clk 0:02:33]}  Nc4 {[%clk 0:01:53]} 18. h4 {[%clk 0:02:26]}  h5 {[%clk 0:01:42]} 19. Nd2 {[%clk 0:02:12]}  hxg4 {[%clk 0:01:14]} 20. Qxg4 {[%clk 0:02:05]}  Nxd2 {[%clk 0:00:47]} 21. Bxd2 {[%clk 0:02:02]}  Qc8 {[%clk 0:00:29]} 22. Qf3 {[%clk 0:01:51]}  Qf5 {[%clk 0:00:25]} 23. Qxf5 {[%clk 0:01:41]}  Bxf5 {[%clk 0:00:26]} 24. Ne3 {[%clk 0:01:39]}  Be4 {[%clk 0:00:23]} 25. Nf1 {[%clk 0:01:20]}  Nf5 {[%clk 0:00:20]} 26. h5 {[%clk 0:01:05]}  Nh4 {[%clk 0:00:20]} 27. Bd1 {[%clk 0:00:59]}  Nf3+ {[%clk 0:00:16]} 28. Bxf3 {[%clk 0:00:57]}  Bxf3 {[%clk 0:00:17]} 29. h6 {[%clk 0:00:53]}  g6 {[%clk 0:00:16]} 30. Nh2 {[%clk 0:00:50]}  Be4 {[%clk 0:00:15]} 31. Ng4 {[%clk 0:00:45]}  Re6 {[%clk 0:00:07]} 32. Bg5 {[%clk 0:00:43]}  Kh8 {[%clk 0:00:03]} 33. Nf6 {[%clk 0:00:37]}  Be7 {[%clk 0:00:02]} 34. Nxe4 {[%clk 0:00:34]}  dxe4 {[%clk 0:00:03]} 35. Be3 {[%clk 0:00:23]}  f5 {[%clk 0:00:02]} 36. d5 {[%clk 0:00:23]}  Rd6 {[%clk 0:00:02]} 37. Rad1 {[%clk 0:00:19]}  Kh7 {[%clk 0:00:02]} 38. c4 {[%clk 0:00:19]}  Bf6 {[%clk 0:00:02]} 39. c5 {[%clk 0:00:19]}  Rd7 {[%clk 0:00:02]} 40. b3 {[%clk 0:00:19]}  Rad8 {[%clk 0:00:02]} 41. c6 {[%clk 0:00:17]}  bxc6 {[%clk 0:00:02]} 42. Rc1 {[%clk 0:00:16]}  cxd5 {[%clk 0:00:02]} 43. Bf4 {[%clk 0:00:14]}  d4 {[%clk 0:00:02]} 44. Rxc7 {[%clk 0:00:14]}  d3 {[%clk 0:00:02]} 45. Rxd7+ {[%clk 0:00:13]}  Rxd7 {[%clk 0:00:02]} 46. Rd1 {[%clk 0:00:14]}  g5 {[%clk 0:00:01]} 47. Bd2 {[%clk 0:00:14]}  Kxh6 {[%clk 0:00:01]} 48. Bxa5 {[%clk 0:00:13]}  Kg6 {[%clk 0:00:02]} 49. b4 {[%clk 0:00:14]}  f4 {[%clk 0:00:02]} 50. b5 {[%clk 0:00:14]}  e3 {[%clk 0:00:03]} 51. fxe3 {[%clk 0:00:13]}  fxe3 {[%clk 0:00:03]} 52. b6 {[%clk 0:00:14]}  Bd4 {[%clk 0:00:03]} 53. Kg2 {[%clk 0:00:13]}  e2 {[%clk 0:00:03]} 54. Rxd3 {[%clk 0:00:12]}  Bxb6 {[%clk 0:00:02]} 55. Rxd7 {[%clk 0:00:12]}  Bxa5 {[%clk 0:00:02]} 56. Rd6+ {[%clk 0:00:12]}  Kf5 {[%clk 0:00:03]} 57. Rd5+ {[%clk 0:00:12]}  Ke4 {[%clk 0:00:03]} 58. Rxa5 {[%clk 0:00:10]}  e1=Q {[%clk 0:00:03]} 59. Rb5 {[%clk 0:00:08]}  Qe2+ {[%clk 0:00:02]} 60. Kg3 {[%clk 0:00:08]}  Qe3+ {[%clk 0:00:02]} 61. Kg2 {[%clk 0:00:09]}  Qf3+ {[%clk 0:00:02]} 62. Kg1 {[%clk 0:00:08]}  Qg3+ {[%clk 0:00:03]} 63. Kf1 {[%clk 0:00:08]}  Qd3+ {[%clk 0:00:03]} 64. Kg2 {[%clk 0:00:08]}  Qc2+ {[%clk 0:00:03]} 65. Kg3 {[%clk 0:00:08]}  Qxa4 {[%clk 0:00:03]} 66. Rxg5 {[%clk 0:00:07]}  Qb3+ {[%clk 0:00:03]} 67. Kg4 {[%clk 0:00:07]}  Qf3+ {[%clk 0:00:03]} 68. Kh4 {[%clk 0:00:07]}  Kf4 {[%clk 0:00:02]} 69. Rf5+ {[%clk 0:00:08]}  Kxf5 {[%clk 0:00:01]} 1/2-1/2

[Event "November 21 Early 2023"]
[Site "https://www.chess.com"]
[Date "2023.11.21"]
[Round "6"]
[White "Buchenau, Frank"]
[Black "DonCiao"]
[Result "1-0"]
[Board "195"]
[TimeControl "180+1"]
[WhiteFideId "4604350"]
[WhiteElo "2157"]
[BlackElo "2122"]
[WhiteTeam "GER"]
[WhiteClock "0:00:27"]
[BlackClock "0:00:00"]

1. e4 {[%clk 0:03:00]}  c5 {[%clk 0:02:59]} 2. Nf3 {[%clk 0:03:00]}  Nc6 {[%clk 0:02:59]} 3. Bb5 {[%clk 0:02:59]}  g6 {[%clk 0:02:58]} 4. Bxc6 {[%clk 0:02:59]}  dxc6 {[%clk 0:02:55]} 5. d3 {[%clk 0:02:57]}  Bg7 {[%clk 0:02:54]} 6. O-O {[%clk 0:02:57]}  Bg4 {[%clk 0:02:35]} 7. Nbd2 {[%clk 0:02:56]}  Nf6 {[%clk 0:02:33]} 8. h3 {[%clk 0:02:55]}  Bxf3 {[%clk 0:02:29]} 9. Nxf3 {[%clk 0:02:52]}  Nd7 {[%clk 0:02:26]} 10. c3 {[%clk 0:02:50]}  e5 {[%clk 0:02:25]} 11. Qb3 {[%clk 0:02:41]}  b6 {[%clk 0:02:09]} 12. Be3 {[%clk 0:02:37]}  O-O {[%clk 0:02:04]} 13. Rfd1 {[%clk 0:02:24]}  h6 {[%clk 0:01:52]} 14. d4 {[%clk 0:02:22]}  cxd4 {[%clk 0:01:47]} 15. cxd4 {[%clk 0:02:21]}  Qe7 {[%clk 0:01:38]} 16. d5 {[%clk 0:02:06]}  cxd5 {[%clk 0:01:33]} 17. Rxd5 {[%clk 0:02:03]}  Rfe8 {[%clk 0:01:15]} 18. Rad1 {[%clk 0:02:00]}  Nf8 {[%clk 0:01:15]} 19. h4 {[%clk 0:01:43]}  Rac8 {[%clk 0:01:13]} 20. h5 {[%clk 0:01:43]}  gxh5 {[%clk 0:01:07]} 21. a4 {[%clk 0:01:34]}  Red8 {[%clk 0:00:50]} 22. a5 {[%clk 0:01:29]}  Rxd5 {[%clk 0:00:48]} 23. Rxd5 {[%clk 0:01:28]}  bxa5 {[%clk 0:00:45]} 24. Rxa5 {[%clk 0:01:27]}  Ng6 {[%clk 0:00:38]} 25. Rxa7 {[%clk 0:01:25]}  Qf8 {[%clk 0:00:31]} 26. Qd5 {[%clk 0:01:01]}  Rd8 {[%clk 0:00:29]} 27. Rxf7 {[%clk 0:00:56]}  Qxf7 {[%clk 0:00:25]} 28. Qxd8+ {[%clk 0:00:55]}  Kh7 {[%clk 0:00:23]} 29. Qd5 {[%clk 0:00:51]}  Qc7 {[%clk 0:00:18]} 30. b4 {[%clk 0:00:48]}  Nf4 {[%clk 0:00:15]} 31. Bxf4 {[%clk 0:00:43]}  exf4 {[%clk 0:00:14]} 32. Qc5 {[%clk 0:00:37]}  Qb7 {[%clk 0:00:11]} 33. Qf5+ {[%clk 0:00:32]}  Kh8 {[%clk 0:00:09]} 34. b5 {[%clk 0:00:31]}  h4 {[%clk 0:00:06]} 35. Nxh4 {[%clk 0:00:31]}  Qb6 {[%clk 0:00:04]} 36. Ng6+ {[%clk 0:00:29]}  Kg8 {[%clk 0:00:00]} 37. Nxf4 {[%clk 0:00:27]} 1-0